bitfinex/quotes_ETHUSD_20251110
["timestamp","ask_amount","ask_price","bid_price","bid_amount"]
[1762781631229,0.25812565,3613.7,3613.6,2.76732344]
[1762781631662,0.45922565,3613.7,3613.6,2.76732344]
[1762781631993,0.45922565,3613.7,3613.1,0.01]
[1762781631994,0.80462565,3613.7,3613.1,0.01]
[1762781632167,0.2011,3613.2,3613.1,0.01]
[1762781632369,5.05444445,3613.2,3612.9,0.002]
[1762781635058,0.80612565,3613.0,3612.9,2.76985961]
[1762781635368,0.80612565,3613.0,3612.9,0.002]
[1762781635784,0.80612565,3613.0,3612.9,2.76985961]
[1762781635983,0.60502565,3613.0,3612.9,2.76985961]
[1762781636683,0.25812565,3613.0,3612.9,2.76985961]
[1762781636884,0.25763706,3613.6,3613.3,2.76750026]
[1762781637069,0.25763706,3613.6,3612.9,0.002]
[1762781637070,0.2576369,3613.5,3613.4,2.76747661]
[1762781637591,0.4587369,3613.5,3613.4,2.76747661]
[1762781638168,0.2576369,3613.5,3613.4,2.76747661]
[1762781638492,0.646,3614.5,3613.6,2.76727166]
[1762781638791,0.25750788,3614.4,3614.3,2.76678748]
[1762781639190,0.25750788,3614.4,3614.3,3.87998748]
[1762781639348,0.001,3614.5,3614.4,2.76671093]
[1762781639551,0.001,3614.5,3614.4,2.96671093]
[1762781639792,0.001,3614.5,3614.4,3.66887077]
[1762781640164,0.0002,3614.5,3614.4,3.66887077]
[1762781640980,1e-08,3614.9,3614.8,3.23460478]
[1762781641292,1e-08,3614.9,3614.8,3.88060478]
[1762781641478,1e-08,3614.9,3614.8,4.34320478]
[1762781641678,1e-08,3614.9,3614.8,5.37709866]
[1762781642584,0.20110001,3614.9,3614.0,0.4626]
[1762781642898,4.07194675,3615.9,3614.1,0.1805]
[1762781642899,0.647,3615.1,3614.1,0.1805]
[1762781643071,0.25726912,3615.0,3614.7,2.76641591]
[1762781643298,0.25726912,3614.9,3614.8,2.76640478]
[1762781643614,3.87394675,3615.9,3614.2,0.648]
[1762781643615,0.01,3615.9,3614.2,0.648]
[1762781643820,0.25721304,3615.8,3615.2,2.76609083]
[1762781643990,0.25721304,3615.7,3615.1,2.76615083]
[1762781644316,0.01,3615.9,3615.8,3.23383969]
[1762781644540,0.01,3615.9,3615.8,3.69643969]
[1762781645086,0.01,3615.9,3615.8,3.41763969]
[1762781647006,0.01,3615.9,3615.2,0.55324293]
[1762781647197,0.01,3615.9,3615.6,2.76579019]
[1762781647518,0.01,3615.9,3615.1,0.651]
[1762781647696,0.01,3615.9,3615.7,2.76567564]
[1762781647900,0.01,3615.9,3615.1,0.651]
[1762781648081,0.25687173,3615.8,3615.6,2.7657175]
[1762781648281,0.01,3615.9,3615.6,2.7657175]
[1762781648513,0.01,3615.9,3615.1,0.651]
[1762781648514,0.25684768,3615.8,3615.1,0.651]
[1762781648894,0.25684768,3615.8,3615.2,2.76604219]
[1762781649219,0.25684768,3615.8,3614.8,2.76634427]
[1762781649716,1.259712,3615.6,3613.9,2.76709372]
[1762781649920,1.259712,3615.6,3614.7,2.76644776]
[1762781649921,1.44589832,3615.5,3614.7,2.76644776]
[1762781650085,0.25684768,3615.4,3614.6,2.76655182]
[1762781650286,0.25684768,3615.4,3614.5,0.4626]
[1762781650518,0.01,3615.9,3614.5,0.4626]
[1762781650717,0.2570065,3615.8,3615.4,2.76588858]
[1762781650952,0.2570065,3615.8,3615.2,2.76609259]
[1762781651117,0.2570065,3615.8,3615.3,2.76601665]
[1762781651452,0.2570065,3615.8,3614.5,0.4626]
[1762781651655,0.2570065,3615.8,3614.6,0.4626]
[1762781651854,0.2570065,3615.8,3615.3,2.76602185]
[1762781652056,0.2570065,3615.8,3614.6,3.22912734]
[1762781652057,0.011,3615.9,3614.6,0.4626]
[1762781652260,0.011,3615.9,3615.8,2.76563969]
[1762781652630,0.26798994,3615.9,3615.4,2.76590338]
[1762781652948,0.011,3615.9,3615.8,2.76563969]
[1762781653544,0.011,3615.9,3615.7,2.76571547]
[1762781653730,0.011,3615.9,3614.8,0.4626]
[1762781653916,0.011,3615.9,3615.8,2.76563969]
[1762781654121,0.011,3615.9,3615.7,2.76570416]
[1762781654316,0.011,3615.9,3615.8,2.76563969]
[1762781654622,0.26789714,3615.9,3614.8,0.4626]
[1762781654822,0.011,3615.9,3615.6,2.7657401]
[1762781655021,0.011,3615.9,3615.5,2.7658526]
[1762781655229,0.011,3615.9,3614.8,0.4626]
[1762781655529,0.011,3615.9,3615.8,2.76563969]
[1762781655732,0.011,3615.9,3615.8,3.23383969]
[1762781655936,0.01,3616.9,3615.8,1.48393799]
[1762781656261,0.01,3616.9,3616.8,2.76487502]
[1762781657932,0.01,3616.9,3616.2,0.1805]
[1762781658385,0.01,3616.9,3616.7,2.76489866]
[1762781659189,0.01,3616.9,3616.2,2.76532513]
[1762781659190,0.25644558,3616.8,3616.2,2.76532513]
[1762781659354,0.79545601,3616.8,3616.3,2.76524388]
[1762781659555,0.25644558,3616.7,3616.2,2.76531494]
[1762781659756,0.25644558,3616.7,3615.2,0.4626]
[1762781660074,0.25644558,3616.7,3615.3,2.76602218]
[1762781660273,0.25644558,3616.7,3616.2,2.7652743]
[1762781660484,0.25644558,3616.7,3615.9,2.76548905]
[1762781660688,0.25644558,3616.7,3616.2,2.76530489]
[1762781660887,0.25644558,3616.7,3616.3,2.7652435]
[1762781661555,0.25644558,3616.7,3616.4,2.76515728]
[1762781661762,0.25644558,3616.7,3616.3,2.7652564]
[1762781662101,0.25644558,3616.7,3615.4,0.4626]
[1762781662102,0.46296238,3616.7,3616.4,2.76517051]
[1762781662264,0.25644558,3616.6,3616.4,2.76517051]
[1762781662470,0.25644558,3616.6,3616.3,2.76522905]
[1762781662870,0.25644558,3616.6,3615.4,0.4626]
[1762781663066,0.25644558,3616.6,3615.5,2.76586917]
[1762781663266,0.25644558,3616.6,3616.2,2.76525921]
[1762781663679,0.25644558,3616.6,3615.5,3.22843549]
[1762781663680,0.25644558,3616.6,3615.8,2.76560281]
[1762781663881,0.25644558,3616.6,3615.5,2.76586917]
[1762781664094,0.25644558,3616.6,3616.2,2.76532618]
[1762781664295,0.25644558,3616.6,3615.3,0.34091222]
[1762781664296,0.25564558,3616.6,3615.3,0.34091222]
[1762781664604,0.25564558,3616.6,3616.1,2.76536599]
[1762781664789,0.25564558,3616.6,3615.1,2.7661752]
[1762781665090,0.2065168,3616.7,3615.8,2.76557877]
[1762781665492,0.2065168,3616.7,3616.0,2.7654766]
[1762781666487,0.2065168,3616.7,3615.9,2.76553704]
[1762781667576,0.2065168,3616.7,3615.8,2.76561617]
[1762781667972,0.2065168,3616.7,3615.9,2.76555895]
[1762781669113,0.2065168,3616.7,3615.4,0.02765945]
[1762781669411,0.01,3616.9,3616.1,2.76536574]
[1762781669913,0.01,3616.9,3616.2,2.76530877]
[1762781670600,0.01,3616.9,3616.1,0.1978]
[1762781670802,0.01,3616.9,3616.8,2.76487502]
[1762781671497,0.011,3616.9,3616.8,2.76487502]
[1762781671899,0.011,3616.9,3616.2,0.486]
[1762781672214,0.011,3616.9,3616.8,2.76487502]
[1762781676117,0.011,3616.9,3616.3,0.486]
[1762781676319,0.011,3616.9,3616.7,2.76495147]
[1762781676320,0.25825779,3616.8,3616.7,2.76495147]
[1762781676926,0.25825779,3616.8,3616.6,2.76502173]
[1762781677105,0.25825779,3616.7,3616.6,2.76502792]
[1762781678204,0.25825779,3616.7,3616.6,3.23782792]
[1762781679593,0.25825779,3616.7,3616.6,2.76502792]
[1762781680229,0.25825779,3616.7,3616.6,3.23782792]
[1762781685429,0.25825779,3616.7,3616.6,3.72382792]
[1762781685640,0.25825779,3616.7,3616.6,4.37272195]
[1762781685832,0.25825779,3616.7,3616.6,3.88672195]
[1762781686146,0.25825779,3616.7,3616.6,4.37272195]
[1762781687345,0.011,3616.9,3616.8,2.76487502]
[1762781687519,0.011,3616.9,3616.8,3.23767502]
[1762781687724,0.011,3616.9,3616.8,3.72367502]
[1762781688103,0.0102,3616.9,3616.8,3.72367502]
[1762781690651,0.0102,3616.9,3616.8,4.09714973]
[1762781692236,0.0102,3616.9,3616.8,3.61114973]
[1762781692424,0.0102,3616.9,3616.8,4.09714973]
[1762781693458,0.3752,3618.3,3616.9,0.4941]
[1762781693956,0.3752,3618.3,3617.6,2.76425154]
[1762781694253,0.3752,3618.3,3616.9,0.4941]
[1762781694421,0.2252,3618.3,3617.5,2.76428468]
[1762781694627,0.2252,3618.3,3617.6,2.76423928]
[1762781694826,0.0752,3618.3,3617.6,2.76423928]
[1762781695346,0.0752,3618.3,3617.6,2.76420109]
[1762781695728,0.0752,3618.3,3617.0,0.4955]
[1762781696574,0.0752,3618.3,3616.8,0.1861]
[1762781696778,0.0752,3618.3,3617.2,2.76450558]
[1762781697166,0.0752,3618.3,3617.4,2.76437061]
[1762781697463,0.0752,3618.3,3616.8,0.6816]
[1762781697659,0.0752,3618.3,3617.5,2.76433821]
[1762781697884,0.0752,3618.3,3616.9,0.4955]
[1762781698043,0.0752,3618.3,3617.5,2.7643295]
[1762781698237,0.0752,3618.3,3617.6,2.76425416]
[1762781698643,0.0752,3618.3,3616.9,0.4955]
[1762781698941,0.0752,3618.3,3617.4,2.76436438]
[1762781699157,0.0752,3618.3,3617.3,2.76448176]
[1762781699357,0.25854578,3618.2,3616.9,0.4955]
[1762781699557,0.25854578,3618.1,3617.3,2.76449077]
[1762781699787,0.25854578,3618.0,3617.3,2.76449077]
[1762781699989,0.25854578,3617.9,3617.4,2.76441581]
[1762781700145,0.0752,3618.3,3617.0,2.7647144]
[1762781700146,0.25854578,3617.8,3617.0,2.7647144]
[1762781700340,0.25854578,3617.7,3616.7,2.76494556]
[1762781700584,4.26945075,3618.6,3616.4,2.9552679]
[1762781700585,0.25854578,3617.6,3617.5,2.76434001]
[1762781700882,0.25854578,3617.6,3617.5,3.25124001]
[1762781701246,0.25854578,3617.6,3616.8,2.76484141]
[1762781701443,0.25854578,3617.5,3617.4,2.76437425]
[1762781701875,0.25854578,3617.5,3617.4,3.74677425]
[1762781702675,0.25854578,3617.5,3616.8,0.4955]
[1762781702874,0.25854578,3617.4,3617.3,2.76444731]
[1762781703795,0.25854578,3617.4,3617.3,3.25134731]
[1762781704292,0.25854578,3617.4,3617.3,3.74684731]
[1762781704999,0.25854578,3617.4,3617.3,4.39798995]
[1762781708206,0.25854578,3617.4,3617.3,3.90248995]
[1762781708566,0.25854578,3617.4,3617.3,4.39798995]
[1762781709098,0.25954578,3617.4,3617.3,4.39798995]
[1762781709980,0.00954578,3617.4,3617.3,4.39798995]
[1762781710920,0.01,3618.9,3618.5,2.76351911]
[1762781711206,0.01,3618.9,3617.3,1.63354264]
[1762781711207,0.01,3618.9,3618.8,2.76334696]
[1762781711412,0.01,3618.9,3618.8,3.25024696]
[1762781712198,0.0092,3618.9,3618.8,0.4869]
[1762781712369,0.0092,3618.9,3618.8,2.76334696]
[1762781713090,0.4782,3619.6,3619.0,2.76317766]
[1762781713300,0.44207206,3619.5,3619.0,2.76317766]
[1762781713972,0.44207206,3619.5,3618.9,2.76325105]
[1762781714174,0.44207206,3619.5,3618.7,2.76341059]
[1762781714391,0.44207206,3619.5,3618.6,0.1901]
[1762781714592,0.44207206,3619.5,3618.9,2.76322199]
[1762781714798,0.44207206,3619.5,3618.6,0.6856]
[1762781715010,0.44207206,3619.5,3618.8,2.76331651]
[1762781715208,0.44207206,3619.5,3618.9,2.76323937]
[1762781715412,0.44207206,3619.5,3619.0,2.76313939]
[1762781715819,0.01,3619.9,3618.6,0.1901]
[1762781715985,0.659,3619.9,3619.3,2.76291581]
[1762781716178,0.01,3619.9,3619.3,2.76291352]
[1762781716422,0.01,3619.9,3619.1,2.76307817]
[1762781716634,0.01,3619.9,3619.2,2.76303984]
[1762781716781,0.01,3619.9,3619.3,2.76296238]
[1762781716984,0.01,3619.9,3618.8,0.4955]
[1762781717307,0.01,3619.9,3619.2,2.76297602]
[1762781717488,0.01,3619.9,3618.9,2.7632706]
[1762781717689,0.01,3619.9,3618.9,3.6036769]
[1762781717917,0.01,3619.9,3619.7,2.76260323]
[1762781718117,1.259712,3620.6,3619.8,2.76256843]
[1762781718279,1.259712,3620.6,3619.3,0.4955]
[1762781718280,0.52022326,3620.5,3619.6,2.76271464]
[1762781718480,0.52022326,3620.5,3619.3,3.25842182]
[1762781718681,1.259712,3619.4,3618.7,2.76337879]
[1762781718916,1.259712,3619.4,3618.6,0.1901]
[1762781719093,1.259712,3619.4,3618.7,2.76340075]
[1762781719289,1.259712,3619.4,3618.7,2.76342332]
[1762781719509,1.259712,3619.4,3619.0,2.7631921]
[1762781719714,1.259712,3619.4,3618.6,0.6856]
[1762781719917,1.259712,3619.4,3619.1,2.76311597]
[1762781720105,1.65627417,3619.4,3618.9,2.76322987]
[1762781720304,0.39656217,3619.4,3618.6,0.1901]
[1762781720486,1.259712,3619.6,3618.9,2.76325082]
[1762781720686,1.259712,3619.6,3619.0,2.76318328]
[1762781721310,1.259712,3619.6,3618.9,2.76325935]
[1762781721510,0.52022326,3619.5,3618.9,2.76325935]
[1762781721718,0.52022326,3619.5,3619.0,2.76318577]
[1762781721883,3.94252059,3619.3,3618.2,0.1901]
[1762781722090,1.159712,3619.2,3618.2,2.95388487]
[1762781722298,1.159712,3619.2,3618.2,0.1901]
[1762781722620,1.159712,3619.2,3618.5,2.76357234]
[1762781722794,0.76786278,3619.1,3618.2,0.6856]
[1762781722994,3.94252059,3618.9,3618.1,0.01]
[1762781723179,0.25763952,3618.8,3618.1,0.01]
[1762781723383,0.25763952,3618.7,3618.1,0.2001]
[1762781723715,0.25763952,3618.6,3618.2,2.76376005]
[1762781724018,3.94252059,3618.9,3618.1,0.01]
[1762781724019,0.25763952,3618.5,3618.1,0.01]
[1762781724215,4.20016011,3618.4,3618.1,0.01]
[1762781724528,1.51735152,3618.3,3618.1,0.01]
[1762781724732,0.25763952,3618.2,3618.1,0.01]
[1762781725497,0.90663952,3618.2,3618.1,0.01]
[1762781725691,1.41686278,3618.2,3618.1,0.01]
[1762781726616,1.31686278,3618.2,3618.1,0.01]
[1762781727838,1.72236678,3618.2,3618.1,0.012]
[1762781728685,1.31686278,3618.2,3618.1,0.012]
[1762781729530,9.04657478,3618.2,3618.1,0.012]
[1762781731258,9.04657478,3618.2,3618.1,3.24958159]
[1762781731422,6.62763952,3618.2,3618.1,3.92988159]
[1762781731922,6.62763952,3618.2,3618.1,0.6735]
[1762781732130,6.62763952,3618.2,3618.1,3.43738159]
[1762781732360,6.62763952,3618.2,3618.1,0.6735]
[1762781732562,6.62763952,3618.2,3618.1,3.43738159]
[1762781732715,6.62763952,3618.2,3618.1,3.92988159]
[1762781733820,6.62763952,3618.2,3618.1,4.59927282]
[1762781733821,0.15763952,3618.2,3618.1,4.59927282]
[1762781734014,6.47,3619.6,3618.9,2.76320744]
[1762781734015,0.648,3619.3,3618.9,2.76320744]
[1762781734220,0.648,3619.3,3619.0,2.76319388]
[1762781734416,0.648,3619.3,3618.1,0.68139123]
[1762781734659,5.20223259,3618.2,3618.1,0.012]
[1762781734827,5.72245585,3618.2,3618.1,0.012]
[1762781736217,5.72165585,3618.2,3618.1,0.012]
[1762781737557,5.20143259,3618.2,3618.1,0.012]
[1762781738425,5.45929624,3618.2,3618.1,0.012]
[1762781740265,1.51757565,3618.2,3618.1,0.012]
[1762781741261,1.51760689,3618.2,3618.1,0.012]
[1762781741756,1.51760689,3618.2,3618.1,2.77588159]
[1762781742059,1.51760689,3618.2,3618.1,3.24958159]
[1762781742226,1.51760689,3618.2,3618.1,0.012]
[1762781742426,1.51760689,3618.2,3618.1,2.77588159]
[1762781743040,1.51760689,3618.2,3618.1,0.012]
[1762781743566,1.51760689,3618.2,3618.1,2.77588159]
[1762781744144,1.51760689,3618.2,3618.1,3.43738159]
[1762781744337,1.51760689,3618.2,3618.1,4.59926717]
[1762781744338,0.25789489,3618.2,3618.1,4.59926717]
[1762781744533,0.25785828,3619.1,3618.8,2.76331751]
[1762781744907,0.25785828,3619.0,3618.8,2.76331751]
[1762781745093,0.25785828,3618.9,3618.8,2.76334696]
[1762781745293,0.25785828,3618.9,3618.8,3.25584696]
[1762781745498,0.25785828,3618.9,3618.8,3.72954696]
[1762781745993,0.25785828,3618.9,3618.8,0.4737]
[1762781746171,0.25785828,3618.9,3618.2,2.76375099]
[1762781746370,0.25785828,3618.9,3618.5,2.7635684]
[1762781746371,1.51757028,3618.8,3618.5,2.7635684]
[1762781746608,0.25785828,3618.7,3618.4,2.76362102]
[1762781746774,0.25785828,3618.6,3618.1,0.1998]
[1762781747102,0.25792174,3618.5,3618.1,0.6923]
[1762781747306,0.25792174,3618.4,3618.1,0.6923]
[1762781747478,0.25792174,3618.3,3618.2,2.7638052]
[1762781748003,0.25792174,3618.3,3618.2,3.7300052]
[1762781749415,0.25792174,3618.3,3618.2,0.4737]
[1762781749601,0.25792174,3618.3,3618.2,2.7638052]
[1762781750017,0.25792174,3618.3,3618.2,3.7300052]
[1762781750414,0.25792174,3618.3,3618.2,2.7638052]
[1762781751032,0.25792174,3618.3,3618.1,0.012]
[1762781751211,0.25792174,3618.2,3618.1,2.77588159]
[1762781752029,0.25792174,3618.2,3618.1,3.24958159]
[1762781752232,0.25792174,3618.2,3618.1,3.92988159]
[1762781753997,0.25792174,3618.2,3618.1,4.6020297]
[1762781754200,7.729712,3618.8,3618.7,2.76342332]
[1762781754425,7.729712,3618.8,3618.7,3.25882332]
[1762781754620,7.729712,3618.8,3618.7,3.73322332]
[1762781755531,7.729712,3618.8,3618.7,3.25882332]
[1762781755733,7.729712,3618.8,3618.6,2.76349778]
[1762781755937,7.729712,3618.8,3618.6,2.76344016]
[1762781756342,7.729712,3618.8,3618.7,2.76342332]
[1762781756940,7.729712,3618.8,3618.2,0.4539]
[1762781757431,7.729712,3618.8,3618.3,2.76365732]
[1762781757634,1.259712,3618.5,3618.2,2.76380099]
[1762781757805,1.259712,3618.5,3618.1,0.012]
[1762781758206,1.259712,3618.5,3618.2,2.76375118]
[1762781758429,1.259712,3618.5,3618.3,2.76371885]
[1762781758624,1.259712,3618.5,3618.1,0.012]
[1762781758955,1.259712,3618.5,3618.4,2.76365244]
[1762781759306,1.259712,3618.7,3618.1,0.2093]
[1762781759717,1.259712,3618.7,3618.2,2.76379216]
[1762781760116,1.258912,3618.7,3618.1,2.97315379]
[1762781760307,1.258912,3618.7,3618.2,2.76379509]
[1762781760509,1.258912,3618.7,3618.1,0.012]
[1762781760510,0.405504,3618.5,3618.1,0.012]
[1762781760731,3.94252059,3618.6,3618.1,0.012]
[1762781760936,3.25076779,3618.3,3618.2,3.2177052]
[1762781761327,3.25076779,3618.3,3618.2,3.2413052]
[1762781761739,0.646,3618.7,3618.2,0.9314]
[1762781761913,3.25076779,3618.7,3618.6,3.24093615]
[1762781762244,4.51047979,3618.7,3618.6,3.24093615]
[1762781763036,4.51047979,3618.7,3618.6,3.69483615]
[1762781763037,1.259712,3618.7,3618.6,3.69483615]
[1762781763928,1.259712,3618.7,3618.6,0.4775]
[1762781764164,1.259712,3618.7,3618.6,3.69489969]
[1762781764453,1.259712,3618.7,3618.6,3.24099969]
[1762781764867,1.259712,3618.7,3618.6,0.4775]
[1762781765356,1.259712,3618.7,3618.6,3.24099969]
[1762781765357,1.260712,3618.7,3618.6,3.24099969]
[1762781766061,1.260712,3618.7,3618.6,3.69489969]
[1762781766278,1.51919466,3618.7,3618.6,3.24099969]
[1762781766632,0.25948266,3618.7,3618.6,3.69489969]
[1762781766824,0.25948266,3618.7,3618.6,4.34074851]
[1762781771041,0.25948266,3618.7,3618.6,3.69489969]
[1762781775011,0.25948266,3618.7,3618.1,0.2093]
[1762781775163,0.25848266,3618.6,3618.1,0.2093]
[1762781775370,0.25848266,3618.5,3618.1,2.77585363]
[1762781775709,0.25848266,3618.4,3618.1,2.77585363]
[1762781775888,0.25848266,3618.3,3618.1,2.77585363]
[1762781776096,0.25848266,3618.2,3618.1,2.77585363]
[1762781776290,0.51188726,3618.6,3618.2,2.76376985]
[1762781776466,0.25861834,3618.5,3618.2,2.76376985]
[1762781776666,0.25861834,3618.4,3618.3,2.76372882]
[1762781777514,0.25861834,3618.4,3618.3,3.69512882]
[1762781777807,0.25861834,3618.4,3618.3,3.24122882]
[1762781779093,0.25861834,3618.4,3618.3,3.69512882]
[1762781784202,0.25781834,3618.4,3618.3,4.3619532]
[1762781784402,0.25781834,3618.4,3618.3,4.3639532]
[1762781787170,0.25781834,3618.4,3618.3,3.4325532]
[1762781787367,0.25781834,3618.4,3618.3,3.9057532]
[1762781787571,0.25781834,3618.4,3618.3,4.3667532]
[1762781788677,0.001,3618.7,3618.6,2.76349969]
[1762781789007,0.001,3618.7,3618.6,3.23669969]
[1762781789512,0.001,3618.7,3618.6,3.69769969]
[1762781790402,0.001,3618.7,3618.6,4.41071048]
[1762781791189,0.001,3618.7,3618.6,4.43834547]
[1762781791398,0.001,3618.7,3618.6,4.41071048]
[1762781796291,0.25946871,3618.7,3618.6,4.41071048]
[1762781801352,0.001,3618.7,3618.6,4.41071048]
[1762781802463,0.25934894,3618.7,3618.6,4.41071048]
[1762781805362,0.001,3618.7,3618.6,4.41071048]
[1762781807163,0.003,3622.3,3618.6,4.92355702]
[1762781807494,0.25831864,3620.7,3619.1,3.24871124]
[1762781807769,0.25831864,3620.6,3620.1,2.76234692]
[1762781808072,3.24871124,3620.8,3620.1,2.76234692]
[1762781808073,0.25831864,3620.5,3620.1,2.76234692]
[1762781808246,0.25751864,3620.4,3619.6,0.461]
[1762781808566,1.259712,3620.5,3620.2,2.76222887]
[1762781808803,1.259712,3620.5,3620.1,2.76232598]
[1762781808983,3.24871124,3620.6,3620.1,2.76232598]
[1762781809182,1.259712,3620.5,3620.1,2.76232598]
[1762781809358,1.259712,3620.5,3620.2,2.76227154]
[1762781809870,3.25871124,3620.9,3620.1,0.1394]
[1762781810071,1.259712,3620.8,3620.2,2.76225419]
[1762781810284,1.259712,3620.8,3620.3,2.76215624]
[1762781810489,1.259712,3620.8,3620.1,0.1394]
[1762781810656,0.01,3620.9,3620.8,2.76182059]
[1762781810854,0.01,3620.9,3620.8,2.79572059]
[1762781811092,0.01,3620.9,3620.8,3.81248929]
[1762781811456,0.01,3620.9,3620.8,3.35148929]
[1762781811656,0.01,3620.9,3620.8,3.81248929]
[1762781811853,0.01,3620.9,3620.8,2.99532059]
[1762781813777,0.01,3620.9,3620.8,0.4949]
[1762781813982,0.01,3620.9,3620.5,2.7620358]
[1762781814305,0.01,3620.9,3620.4,2.76209815]
[1762781814506,3.24871124,3620.8,3620.1,0.1394]
[1762781814691,3.24871124,3620.8,3620.4,2.76211931]
[1762781814894,0.01,3620.9,3620.4,2.76211931]
[1762781815304,0.01,3620.9,3620.2,0.4744]
[1762781815508,0.01,3620.9,3620.3,2.76218877]
[1762781815674,0.01,3620.9,3620.4,2.76212421]
[1762781815875,0.01,3620.9,3620.1,0.1394]
[1762781816298,0.01,3620.9,3619.7,2.76260189]
[1762781816496,0.55298676,3620.8,3619.8,2.76256541]
[1762781817126,0.55298676,3620.8,3619.7,0.471]
[1762781817421,0.55298676,3620.8,3619.7,3.23364064]
[1762781817625,0.01,3620.9,3619.0,0.1975]
[1762781817626,3.8546516,3620.6,3619.0,0.1975]
[1762781817828,3.8546516,3620.6,3619.0,0.6685]
[1762781817829,1.259712,3620.5,3619.0,0.6685]
[1762781818312,1.259712,3620.5,3619.4,2.7628266]
[1762781818509,1.259712,3620.5,3619.5,2.76280537]
[1762781818924,1.259712,3620.5,3619.3,2.76296216]
[1762781819215,1.259712,3620.0,3618.4,0.002]
[1762781819411,1.259712,3620.0,3618.6,2.7634463]
[1762781819598,0.405504,3619.9,3618.4,3.23661325]
[1762781819923,1.259712,3619.5,3618.6,2.76349327]
[1762781820226,1.259712,3619.5,3618.4,0.002]
[1762781820227,0.25763183,3619.4,3618.4,0.002]
[1762781820530,0.25763183,3619.3,3618.5,2.76352101]
[1762781820688,0.25763183,3619.2,3618.5,2.76355513]
[1762781820893,0.25763183,3619.2,3618.4,0.473]
[1762781820894,0.25763183,3619.1,3618.9,2.76321779]
[1762781821221,0.25763183,3619.1,3618.4,0.002]
[1762781821222,0.2576403,3619.0,3618.5,2.76351216]
[1762781821383,0.2576403,3618.9,3618.4,0.473]
[1762781821589,0.2576403,3618.8,3618.4,0.473]
[1762781821784,0.405504,3619.9,3618.9,2.76321653]
[1762781822085,0.80962746,3619.8,3618.8,2.76334301]
[1762781822429,0.2576407,3619.7,3618.8,2.76334301]
[1762781822629,0.55198676,3619.8,3618.7,2.76338212]
[1762781822630,0.2576407,3619.6,3618.7,2.76338212]
[1762781822825,0.2576407,3619.5,3618.8,2.7633396]
[1762781823030,0.22172028,3619.7,3618.8,2.7633396]
[1762781823031,0.2576407,3619.4,3618.8,2.7633396]
[1762781823324,0.2576407,3619.3,3618.5,0.471]
[1762781823498,0.2576407,3619.2,3618.7,2.76337091]
[1762781823821,0.2576407,3619.1,3618.8,2.76328738]
[1762781824024,0.2576407,3619.0,3618.9,2.7632706]
[1762781824423,0.2576407,3619.6,3618.9,0.7738]
[1762781824628,0.2576407,3619.5,3618.9,0.7738]
[1762781824801,0.2576407,3619.4,3618.9,0.3047]
[1762781825011,0.2576407,3619.3,3618.9,0.3047]
[1762781825224,0.2576407,3619.2,3619.0,0.471]
[1762781825428,0.2576407,3619.1,3619.0,0.471]
[1762781825593,0.25757916,3619.4,3619.1,0.1833]
[1762781825794,0.25756216,3619.3,3619.2,2.76304155]
[1762781825995,0.25756216,3619.3,3619.2,3.23404155]
[1762781826209,0.25756216,3620.0,3619.3,2.76292967]
[1762781826412,0.25755617,3619.9,3619.4,2.76287869]
[1762781826609,0.25755617,3619.8,3619.4,0.471]
[1762781826825,0.25755617,3619.7,3619.4,3.23384655]
[1762781827130,0.25755617,3619.6,3619.1,0.1833]
[1762781827337,0.25755617,3619.5,3619.3,2.76295919]
[1762781827550,0.52023645,3620.0,3619.4,2.76284375]
[1762781827845,0.25754479,3619.9,3619.4,0.3058]
[1762781828003,0.25754479,3619.8,3619.4,0.3058]
[1762781828331,0.52023645,3620.0,3619.4,0.775]
[1762781828332,0.25754479,3619.7,3619.4,0.775]
[1762781828636,0.25754479,3619.6,3619.4,0.3058]
[1762781828794,0.25754479,3619.5,3619.4,0.3058]
[1762781829000,0.25754479,3619.5,3619.4,3.23388887]
[1762781829231,0.25754479,3619.8,3619.4,0.7768]
[1762781829428,0.25754479,3619.7,3619.4,0.7768]
[1762781829638,0.25754479,3619.7,3619.4,3.53967899]
[1762781829795,0.25754479,3619.7,3619.4,0.7768]
[1762781830366,0.25754479,3619.7,3618.4,0.002]
[1762781830367,0.25754479,3619.6,3618.4,0.002]
[1762781830518,1.259712,3619.2,3618.6,2.76348576]
[1762781830717,0.25754479,3619.1,3618.6,2.76349969]
[1762781830927,0.25754479,3619.1,3618.6,0.471]
[1762781831116,0.25754479,3619.0,3618.6,0.471]
[1762781831333,0.25754479,3618.9,3618.6,0.471]
[1762781831534,0.25754479,3618.8,3618.6,0.471]
[1762781831734,0.32885587,3619.5,3619.1,0.6676]
[1762781831957,0.25761214,3619.4,3619.2,0.4843]
[1762781832125,0.25681214,3619.3,3619.2,0.4843]
[1762781832522,0.25681214,3619.3,3619.2,0.9553]
[1762781832736,1.259712,3619.8,3619.2,0.9553]
[1762781832965,3.94265245,3620.1,3619.2,0.9553]
[1762781832966,1.259712,3620.0,3619.7,0.0159]
[1762781833131,0.58443645,3619.9,3619.4,2.76281379]
[1762781833462,3.94265245,3620.1,3619.5,2.76281031]
[1762781833760,1.259712,3620.0,3619.3,0.471]
[1762781834061,1.259712,3620.0,3619.6,2.76272365]
[1762781834261,1.259712,3620.0,3619.5,2.76279454]
[1762781834465,1.259712,3620.0,3619.6,2.76273621]
[1762781834664,1.259712,3620.0,3619.6,3.23373621]
[1762781834838,1.259712,3620.0,3619.7,0.471]
[1762781835066,1.77994845,3620.0,3619.6,0.471]
[1762781835456,1.77994845,3620.0,3619.6,3.23373297]
[1762781835623,1.77994845,3620.0,3619.6,0.471]
[1762781835828,1.77994845,3620.0,3619.6,3.23372374]
[1762781836029,1.259712,3620.0,3619.6,3.23372374]
[1762781836229,1.259712,3620.0,3619.6,0.471]
[1762781836436,1.259712,3620.0,3619.4,2.7628741]
[1762781836639,1.259712,3620.0,3619.3,0.471]
[1762781836839,1.259712,3620.0,3619.3,3.23394258]
[1762781837067,0.416504,3620.9,3619.9,0.4843]
[1762781837068,0.011,3620.9,3619.9,0.4843]
[1762781837372,0.011,3620.9,3619.5,2.912]
[1762781837373,0.011,3620.9,3620.8,3.36002059]
[1762781837540,0.011,3620.9,3620.8,3.83102059]
[1762781838663,0.011,3620.9,3620.8,0.5982]